bitfinex/quotes_ETHUSD_20240715
["timestamp","ask_amount","ask_price","bid_price","bid_amount"]
[1721010713305,0.37587954,3317.6,3316.2,5.9459]
[1721010713611,0.37587954,3317.6,3316.3,0.0602908]
[1721010713816,0.37587954,3317.6,3316.0,2.71405]
[1721010713970,0.37587954,3317.6,3316.1,2.71396]
[1721010714285,0.37587954,3317.6,3315.6,3.622]
[1721010714286,0.37587954,3317.6,3316.3,2.7138]
[1721010714485,0.37587954,3317.6,3316.3,2.77410618]
[1721010714806,2.3062,3317.1,3316.0,2.7141]
[1721010715015,2.53743266,3317.1,3315.3,2.71466]
[1721010715170,2.53743266,3317.1,3315.1,0.06031718]
[1721010715509,2.53743266,3317.1,3315.6,2.71441]
[1721010715709,0.37587954,3317.6,3315.9,2.3357]
[1721010715924,15.61269278,3321.2,3315.6,3.68230898]
[1721010715925,1.5,3320.3,3317.5,1.818]
[1721010716124,2.4925,3320.2,3317.9,2.71248]
[1721010716270,2.52041461,3320.2,3317.5,2.71288]
[1721010716465,2.4925,3320.0,3317.0,2.71328]
[1721010716672,2.4925,3320.0,3316.4,2.71373]
[1721010716673,1.5,3319.6,3316.4,2.71373]
[1721010716968,2.3664,3318.9,3316.8,2.71344]
[1721010717180,0.41365718,3318.8,3317.1,2.71318]
[1721010717381,0.02701718,3318.8,3317.2,0.06027578]
[1721010717613,2.3664,3319.3,3317.8,2.71263]
[1721010717819,2.3664,3319.3,3317.6,2.71279]
[1721010717820,0.02701752,3319.2,3317.6,2.71279]
[1721010718129,2.3664,3319.3,3317.0,2.77349426]
[1721010718441,0.26365787,3319.2,3317.5,2.71288]
[1721010718621,0.23664,3319.2,3317.6,2.77305765]
[1721010718829,0.23664,3319.2,3317.6,2.71279]
[1721010719286,0.23664,3319.2,3317.1,0.88099943]
[1721010719483,1.7,3319.9,3317.1,0.88099943]
[1721010719484,3.06,3320.0,3317.5,2.71287]
[1721010719685,0.02701904,3319.9,3318.4,4.53013]
[1721010719910,50.0,3321.0,3318.7,2.71186]
[1721010720186,50.0,3321.0,3318.1,2.3498]
[1721010720187,3.0906067,3320.9,3318.1,2.3498]
[1721010720386,1.7,3320.8,3318.2,2.71224]
[1721010720596,1.7,3320.4,3318.0,2.71246]
[1721010720905,1.7,3320.4,3317.7,4.53064]
[1721010720906,2.39502106,3320.3,3317.7,4.53064]
[1721010721116,2.39502106,3320.3,3317.8,2.71264]
[1721010721314,0.40950211,3320.2,3317.9,3.165594]
[1721010721497,1.5,3320.1,3318.0,2.71247]
[1721010721703,0.0270204,3320.0,3318.1,0.06026335]
[1721010721894,0.0270204,3320.0,3318.3,2.71221]
[1721010722099,0.0270204,3320.0,3318.1,0.06026335]
[1721010722301,0.37067265,3320.0,3318.2,0.06025878]
[1721010722535,0.37067265,3320.0,3317.6,2.77304714]
[1721010722831,0.37067265,3320.0,3318.4,5.42428]
[1721010723130,0.37067265,3320.0,3318.5,2.71205]
[1721010723334,0.0270204,3320.0,3317.8,0.06025716]
[1721010723488,0.0270204,3320.0,3318.4,2.71214]
[1721010723692,0.40950211,3320.2,3318.4,2.71214]
[1721010724095,0.40950211,3320.2,3318.7,2.71183]
[1721010724301,0.27775021,3320.1,3318.5,2.71204]
[1721010724738,0.27775021,3320.1,3317.7,0.27730471]
[1721010724906,0.02702026,3320.0,3318.3,2.71221]
[1721010725239,0.02702026,3320.0,3318.0,2.71241]
[1721010725399,0.02702026,3320.0,3317.8,2.71263]
[1721010725742,2.3186,3319.9,3317.8,2.71263]
[1721010725958,5.3186,3319.9,3317.8,2.71263]
[1721010726250,0.02701966,3319.8,3317.8,2.71263]
[1721010727144,3.7922,3319.7,3317.5,2.71286]
[1721010727350,2.2723,3319.5,3317.5,2.71286]
[1721010727633,0.02701871,3319.4,3317.5,2.71286]
[1721010728059,0.02701871,3319.4,3317.6,2.71278]
[1721010728267,0.02701871,3319.4,3317.9,2.71252]
[1721010729049,0.02701871,3319.4,3317.6,2.71279]
[1721010729244,0.22993187,3319.3,3317.4,2.71293]
[1721010729434,0.02788679,3319.2,3317.3,2.713]
[1721010729757,0.22993187,3319.3,3317.9,2.71255]
[1721010729924,0.22993187,3319.3,3318.0,0.06027159]
[1721010730126,0.02697602,3319.2,3318.3,2.71216]
[1721010730436,0.22993187,3319.3,3317.5,2.7128]
[1721010730606,0.22993187,3319.3,3317.5,0.06026775]
[1721010730811,0.22993187,3319.3,3318.4,2.71214]
[1721010731056,0.22993187,3319.3,3318.4,2.77240188]
[1721010731208,0.22993187,3319.3,3317.9,2.71249]
[1721010731548,0.22993187,3319.3,3317.6,2.00582678]
[1721010731752,0.22993187,3319.3,3318.0,2.71247]
[1721010731924,2.2723,3319.5,3318.1,0.06026389]
[1721010732253,2.2723,3319.5,3318.4,2.71214]
[1721010732455,2.2723,3319.5,3318.2,2.71229]
[1721010732456,2.2723,3319.5,3318.2,2.7123]
[1721010732669,2.2723,3319.5,3318.0,2.983717]
[1721010732833,2.2723,3319.5,3318.1,2.71238]
[1721010733164,0.02696826,3319.4,3318.2,2.71229]
[1721010733524,2.2723,3319.5,3318.5,2.71206]
[1721010733719,2.2723,3319.5,3318.2,2.71229]
[1721010733720,2.2723,3319.5,3318.3,2.71219]
[1721010733915,0.02696762,3319.4,3318.4,2.71212]
[1721010734246,50.0,3321.0,3319.8,1.5]
[1721010734449,50.0,3321.0,3319.4,2.4931]
[1721010734450,50.0,3321.0,3320.9,2.7101]
[1721010734621,50.0,3321.0,3320.9,4.5281]
[1721010734817,50.0,3321.0,3320.9,7.69101]
[1721010735354,50.0,3321.0,3320.9,10.40111]
[1721010735985,28.88266009,3321.0,3320.9,13.66121]
[1721010736277,2.38135292,3322.4,3320.9,13.66121]
[1721010736278,2.38135292,3322.4,3322.2,7.23608]
[1721010736571,0.88665156,3322.4,3322.3,7.23592]
[1721010737220,1.56e-06,3322.4,3322.3,8.12688]
[1721010737559,1.56e-06,3322.4,3322.3,8.67688]
[1721010737770,1.5,3326.4,3322.4,2.2551]
[1721010737771,0.3034,3326.4,3322.4,2.2551]
[1721010737925,2.3025,3327.3,3323.6,11.3364]
[1721010737926,1.7,3327.0,3323.6,11.3364]
[1721010738275,1.7,3327.0,3324.2,2.70734]
[1721010738276,1.5,3326.6,3324.2,2.70734]
[1721010738483,0.14917991,3326.7,3324.3,2.70733]
[1721010738484,2.2653,3326.2,3324.3,2.70733]
[1721010738829,0.14917991,3326.7,3324.3,2.70733]
[1721010738830,2.54405848,3327.6,3325.5,2.70635]
[1721010739023,2.54405848,3327.6,3325.5,7.7113]
[1721010739223,2.54405848,3327.6,3325.5,12.68540778]
[1721010739451,2.54405848,3327.6,3326.8,2.7053]
[1721010739860,2.54405848,3327.6,3326.8,5.4106]
[1721010740176,2.54405848,3327.6,3326.8,8.1159]
[1721010740375,2.54405848,3327.6,3326.8,5.4106]
[1721010740524,2.54405848,3327.6,3326.8,5.9606]
[1721010740725,2.46315848,3327.6,3326.2,2.70576]
[1721010740954,2.46315848,3327.6,3326.4,2.70562]
[1721010740955,0.25440585,3327.5,3326.4,2.70562]
[1721010741183,0.96057848,3327.6,3326.6,2.3491]
[1721010741468,4.938594,3330.0,3328.5,2.70384]
[1721010741667,0.06007247,3329.7,3326.2,3.622]
[1721010741960,0.06007247,3329.7,3326.1,2.3491]
[1721010741961,2.70401,3328.4,3326.7,2.70537]
[1721010742161,2.70371,3328.8,3326.5,0.06009933]
[1721010742363,2.70506,3327.1,3325.0,3.622]
[1721010742529,2.70506,3327.1,3324.8,2.4133]
[1721010742530,2.3569,3327.4,3325.1,0.06012121]
[1721010742878,0.06007247,3327.3,3324.8,0.06011851]
[1721010743164,0.06007247,3327.2,3324.0,2.76765634]
[1721010743374,0.06007247,3327.2,3324.0,0.06013634]
[1721010743375,1.7,3327.0,3324.0,0.06013634]
[1721010743663,3.09,3326.8,3323.8,0.0601416]
[1721010743872,1.7,3326.4,3323.2,2.70819]
[1721010744041,3.06,3326.4,3323.9,3.622]
[1721010744225,0.17,3326.9,3324.2,2.70736]
[1721010744425,0.06007247,3326.8,3324.3,0.06013794]
[1721010744625,3.0,3327.1,3324.5,2.70716]
[1721010744857,0.3,3327.0,3324.7,2.70699]
[1721010745069,2.4101,3328.4,3324.8,0.06012658]
[1721010745270,1.76007247,3328.3,3325.4,2.70642]
[1721010745570,0.270371,3328.7,3324.2,1.205829]
[1721010745571,1.7,3327.8,3324.2,1.205829]
[1721010745772,3.09,3326.7,3322.4,4.20887]
[1721010745958,3.09,3326.7,3324.1,2.70749]
[1721010745959,3.6971784,3326.7,3324.1,2.70749]
[1721010746263,2.4101,3327.3,3324.2,0.06014067]
[1721010746572,1.5,3327.0,3324.3,0.06013655]
[1721010746752,0.07517068,3326.9,3323.4,0.06013654]
[1721010746952,0.07517068,3326.9,3324.0,2.70755]
[1721010747153,0.07517068,3326.9,3324.3,2.70732]
[1721010747351,3.24101,3327.2,3324.9,2.70683]
[1721010747662,0.57262872,3327.1,3324.3,2.70727]
[1721010747864,0.64779967,3327.1,3324.3,0.06013676]
[1721010748227,4.26979967,3327.1,3323.8,0.06013688]
[1721010748426,3.0,3327.0,3323.8,1.87813688]
[1721010748628,0.07517109,3326.9,3324.0,2.7075]
[1721010748881,0.30751711,3326.8,3323.7,0.3034]
[1721010749029,2.318,3326.4,3323.7,0.3034]
[1721010749364,0.81920354,3326.3,3323.8,0.06016283]
[1721010749549,0.07519731,3326.2,3323.8,0.06016283]
[1721010749753,0.07519731,3326.2,3323.9,0.0601461]
[1721010749973,3.0,3326.2,3323.9,0.0601461]
[1721010750129,0.07519456,3326.2,3323.9,0.06015568]
[1721010750565,0.07519456,3326.2,3323.3,2.76826566]
[1721010750754,3.622,3326.1,3323.3,2.76826566]
[1721010750952,3.44491426,3326.0,3323.3,3.04510223]
[1721010751155,3.36971946,3326.0,3323.3,0.33698223]
[1721010751357,0.36971946,3326.0,3323.4,2.70804]
[1721010751669,0.36971946,3326.0,3323.5,2.7681351]
[1721010751873,0.36971946,3326.0,3323.6,0.060163]
[1721010752035,0.07520375,3326.0,3323.6,0.060163]
[1721010752431,0.07520375,3326.0,3323.5,0.06015561]
[1721010752656,0.07520375,3326.0,3323.1,2.76847208]
[1721010752976,3.07520375,3326.0,3323.1,2.76847208]
[1721010753176,3.0,3326.0,3323.5,2.70797]
[1721010753345,0.6622,3325.9,3323.6,0.06015485]
[1721010753943,0.6622,3325.9,3323.3,2.76829484]
[1721010753944,0.07519355,3325.8,3323.3,2.76829484]
[1721010754165,0.07519852,3325.7,3323.3,0.06015484]
[1721010754582,0.07519852,3325.7,3323.3,2.76829484]
[1721010754814,0.07519852,3325.7,3323.3,0.06015484]
[1721010755084,0.6622,3325.9,3323.4,0.27683248]
[1721010755282,0.6622,3325.9,3322.6,3.3034]
[1721010755283,4.19809257,3325.8,3323.0,0.06015405]
[1721010755487,3.622,3324.7,3322.6,0.06017284]
[1721010755781,3.622,3324.7,3321.8,2.76954436]
[1721010755782,2.4229,3324.5,3321.8,2.76954436]
[1721010755950,2.4229,3324.5,3322.0,2.70919]
[1721010755951,0.32504172,3324.4,3322.0,2.70919]
[1721010756146,0.32504172,3324.4,3322.0,0.0601796]
[1721010756345,1.5,3323.9,3322.0,0.0601796]
[1721010756541,0.07522864,3323.8,3321.8,0.06018291]
[1721010756745,0.07523318,3323.7,3321.8,0.06018291]
[1721010757087,0.07523318,3323.7,3321.4,0.06018655]
[1721010757442,1.57523318,3323.7,3321.4,0.06018655]
[1721010757682,0.07523318,3323.7,3321.4,0.06018655]
[1721010757855,3.0,3324.0,3321.6,2.7095]
[1721010758187,0.73743511,3323.9,3321.4,0.06018808]
[1721010758379,1.5,3323.5,3321.4,0.06018808]
[1721010758544,0.07524282,3323.4,3321.4,0.06018808]
[1721010758746,0.07524282,3323.4,3320.6,2.77051425]
[1721010758968,0.07524282,3323.4,3320.7,0.27705143]
[1721010758969,2.44602428,3323.3,3320.7,0.27705143]
[1721010759283,2.44602428,3323.3,3320.9,2.7101]
[1721010759444,2.44602428,3323.3,3321.0,0.06020166]
[1721010759794,0.6622,3323.9,3321.7,1.818]
[1721010759985,2.2885,3324.4,3321.8,0.06017302]
[1721010760495,5.122,3325.3,3321.8,0.06017302]
[1721010760496,2.2885,3325.3,3323.3,2.70812]
[1721010760691,2.2885,3325.3,3323.4,0.06015883]
[1721010761181,2.2885,3325.3,3323.4,2.76820883]
[1721010761388,2.2885,3325.3,3323.4,0.06015883]
[1721010761591,0.22885,3325.2,3323.1,0.06015777]
[1721010761791,0.22885,3325.2,3323.2,2.76839277]
[1721010761962,0.22885,3325.2,3323.3,0.0601628]
[1721010762505,0.22885,3325.2,3322.3,1.818]
[1721010762506,0.3040535,3325.2,3322.6,2.7087]
[1721010762671,0.251735,3325.1,3322.7,0.33705748]
[1721010762860,0.251735,3325.1,3322.8,0.06016515]
[1721010763500,0.251735,3325.1,3323.7,2.70781]
[1721010763674,0.251735,3325.1,3323.5,2.70791]
[1721010763993,0.251735,3325.1,3323.6,0.06015522]
[1721010764297,0.251735,3325.1,3323.3,0.06015554]
[1721010765774,0.251735,3325.1,3323.5,2.70796]
[1721010765983,0.251735,3325.1,3323.6,0.06015552]
[1721010766386,0.251735,3325.1,3322.8,2.70855]
[1721010766387,0.251735,3325.1,3323.4,0.06015552]
[1721010766687,0.251735,3325.1,3323.4,2.70799]
[1721010766900,0.251735,3325.1,3323.5,0.0601575]
[1721010768062,0.251735,3325.1,3322.7,2.76877749]
[1721010768260,0.251735,3325.1,3323.0,2.70839]
[1721010768572,0.251735,3325.1,3323.1,0.06016294]
[1721010768787,0.251735,3325.1,3323.1,2.76845294]
[1721010769105,0.251735,3325.1,3323.2,0.27684529]
[1721010769315,0.251735,3325.1,3323.3,2.76827965]
[1721010770165,0.251735,3325.1,3323.3,0.06015965]
[1721010770365,2.4868,3326.2,3324.5,2.7071]
[1721010770587,2.4868,3326.2,3324.6,0.0601366]
[1721010770900,2.4181,3327.1,3325.3,2.70648]
[1721010771110,2.4181,3327.1,3325.4,0.06012882]
[1721010771479,2.4181,3327.1,3325.4,2.76654882]
[1721010771687,4.09397095,3328.4,3325.4,2.76654882]
[1721010771688,2.3897,3328.2,3325.6,1.818]
[1721010771878,2.3897,3328.2,3326.0,2.70594]
[1721010772204,2.3897,3328.2,3325.8,2.70611]
[1721010772205,0.07513883,3328.1,3325.8,2.76622106]
[1721010772413,2.3897,3328.2,3326.3,2.7057]
[1721010772600,2.3897,3328.2,3326.4,0.06010375]
[1721010772783,2.3897,3328.2,3326.2,2.76585582]
[1721010772784,0.23897,3328.1,3326.2,2.76585582]
[1721010772988,0.31410227,3328.1,3325.8,2.70603]
[1721010773296,0.31410227,3328.1,3325.4,2.70641]
[1721010773502,0.31410227,3328.1,3325.5,0.06012001]
[1721010773678,1.5,3327.5,3325.5,0.06012001]
[1721010773883,0.0751497,3327.4,3325.5,0.06012001]
[1721010774112,0.0751497,3327.4,3325.4,0.06011974]
[1721010774705,1.5,3327.3,3325.4,0.06011974]
[1721010774911,2.4384,3327.1,3324.7,0.06012724]
[1721010775224,2.4384,3327.1,3324.2,2.76754533]
[1721010775225,1.5,3326.5,3324.2,2.76754533]
[1721010775510,6.13558477,3326.4,3323.5,2.76807782]
[1721010775698,1.5,3325.7,3323.5,2.76807782]
[1721010775902,6.13558477,3326.4,3323.5,0.06014782]
[1721010775903,1.5,3325.5,3323.5,0.06014782]
[1721010776198,0.07519311,3325.4,3322.9,2.70845]
[1721010776374,2.4456,3325.3,3323.0,0.33100306]
[1721010776575,2.4456,3325.3,3323.0,0.06015806]
[1721010776975,2.4456,3325.3,3323.3,2.70813]
[1721010777280,2.4456,3325.3,3323.4,0.06015704]
[1721010777490,2.4456,3325.3,3323.0,2.70839]
[1721010777491,2.4456,3325.3,3323.5,0.06015845]
[1721010777713,2.38167875,3326.9,3323.8,1.818]
[1721010778007,4.6411,3326.9,3324.5,2.70715]
[1721010778232,4.6411,3326.9,3324.6,0.06013629]
[1721010778432,3.13386108,3328.0,3325.6,2.70626]
[1721010778714,3.13386108,3328.0,3326.2,2.70576]
[1721010778715,2.64058023,3328.0,3326.2,2.70576]
[1721010778913,0.27038023,3328.0,3326.3,0.06010569]
[1721010779098,2.2755,3328.9,3326.5,2.70551]
[1721010779300,0.07512442,3328.8,3326.6,0.06009954]
[1721010779617,0.07512443,3328.7,3326.1,2.76592955]
[1721010779787,3.7755,3328.9,3326.3,2.70563]
[1721010779992,1.52508318,3329.8,3327.7,2.7045]
[1721010779993,0.02508318,3329.8,3327.7,2.7045]
[1721010780195,0.3714509,3329.8,3328.3,2.70406]
[1721010780385,0.34636772,3329.8,3328.3,0.06000899]
[1721010780829,0.34636772,3329.8,3328.3,2.76408899]
[1721010781131,0.34636772,3329.8,3328.3,0.06000899]
[1721010781313,0.35236042,3330.1,3329.0,2.70347]
[1721010781514,0.35236042,3330.1,3329.1,2.76339596]
[1721010781701,0.35236042,3330.1,3328.4,0.05997596]
[1721010781905,0.35236042,3330.1,3328.6,2.70383]
[1721010782110,0.37909544,3329.9,3328.7,0.05998604]
[1721010782420,0.35236042,3330.1,3329.9,2.70278]
[1721010782421,0.65137287,3330.0,3329.9,2.70278]
[1721010782621,1.9803,3331.0,3329.9,0.60992971]
[1721010782920,0.02641102,3330.6,3330.2,2.70252]
[1721010783121,1.9803,3331.0,3330.3,0.05990884]
[1721010783345,1.9803,3331.0,3330.4,1.818]
[1721010783561,2.95e-06,3331.0,3330.9,10.80788]
[1721010783824,1.7,3335.5,3333.0,30.0]
[1721010783825,1.5,3335.0,3333.0,30.0]
[1721010784181,1.7,3335.5,3333.1,0.05977354]
[1721010784380,1.57497034,3335.4,3333.1,0.05977354]
[1721010784677,1.7,3335.5,3333.1,2.75994354]
[1721010784678,1.5,3335.0,3333.1,2.75994354]
[1721010784904,1.5,3335.0,3333.0,30.0]
[1721010784905,0.07497132,3334.9,3333.0,30.0]
[1721010785103,1.5,3335.4,3333.0,30.0]
[1721010785104,2.3135,3334.1,3333.0,30.0]
[1721010785309,1.7,3336.8,3333.1,0.05979957]
[1721010785520,1.5,3337.4,3333.2,2.4236]
[1721010785521,5.322,3336.4,3333.2,2.4236]
[1721010785751,0.07494185,3336.3,3333.3,0.60966953]
[1721010785934,0.07496359,3336.2,3333.3,0.05966953]
[1721010786147,2.3135,3335.4,3333.1,0.05974548]
[1721010786340,2.3135,3335.4,3333.0,30.0]
[1721010786722,3.622,3335.1,3333.0,30.0]
[1721010786917,2.2785,3334.1,3333.0,30.0]
[1721010787141,0.31998344,3334.0,3333.0,29.671916]
[1721010787341,1.7,3333.8,3333.0,28.59364466]
[1721010787550,1.7,3333.4,3333.0,26.09364466]
[1721010787718,0.9934,3333.3,3333.0,23.59364466]
[1721010787920,3.622,3333.1,3333.0,11.60073463]
[1721010788125,0.6697021,3333.1,3333.0,11.60073463]
[1721010788323,1.7,3332.7,3329.4,2.34]
[1721010788528,0.07504969,3332.6,3329.5,0.05992835]
[1721010789123,1.5,3332.3,3329.5,0.05992835]
[1721010789349,1.5,3332.3,3329.4,2.34]
[1721010789350,0.07506793,3332.2,3329.4,2.34]
[1721010789548,2.32506793,3332.2,3329.5,0.05997223]
[1721010789768,0.15750679,3332.1,3329.5,0.05997223]
[1721010790026,0.15750679,3332.1,3329.7,2.70294]
[1721010790230,0.15750679,3332.1,3329.8,0.05992994]
[1721010790522,0.07505035,3332.0,3329.6,0.05992994]
[1721010790719,0.19325571,3332.0,3329.9,0.05992994]
[1721010791132,0.15750679,3332.1,3330.3,2.70244]
[1721010791458,1.7,3332.6,3329.5,0.05989967]
[1721010791641,1.5,3332.3,3329.4,2.34]
[1721010791851,3.622,3332.4,3329.5,0.05997174]
[1721010792170,3.622,3332.4,3329.4,2.34]
[1721010792171,3.07505963,3332.3,3329.4,2.34]
[1721010792342,1.5,3332.1,3329.4,2.34]
[1721010792545,3.622,3331.8,3328.5,2.5192856]
[1721010792750,8.78327991,3331.7,3328.6,0.52232556]
[1721010792932,3.0,3331.6,3328.7,0.05998259]
[1721010793261,3.0,3331.6,3328.8,2.76364218]
[1721010793446,3.3622,3331.7,3329.1,2.70342]
[1721010793670,0.3622,3331.7,3329.2,0.05995275]
[1721010793957,0.07505959,3331.6,3329.3,0.3362894]
[1721010794158,3.622,3332.4,3329.3,0.3362894]
[1721010794365,1.5,3332.0,3328.7,0.05995221]
[1721010794533,0.0750744,3331.9,3329.1,2.70339]
[1721010794857,0.0750744,3331.9,3329.2,0.05995327]
[1721010795021,0.0750744,3331.9,3329.3,0.05995869]
[1721010795422,0.07506075,3331.8,3329.3,0.05995869]
[1721010795662,0.07506075,3331.8,3329.3,0.33629356]
[1721010795866,0.08006077,3331.7,3329.3,0.33629356]
[1721010796021,0.08006077,3331.7,3328.9,0.0599588]
[1721010796225,0.005,3331.7,3329.1,2.70342]
[1721010796446,0.005,3331.7,3329.2,0.88029687]
[1721010796643,0.005,3331.7,3329.0,2.368]
[1721010796644,0.005,3331.7,3329.4,2.70311]
[1721010796822,0.0800522,3331.7,3329.5,0.05995093]
[1721010797229,0.005,3331.7,3329.5,0.05995093]
[1721010797534,0.005,3331.7,3329.6,2.70297]
[1721010797726,0.005,3331.7,3329.7,0.05993216]
[1721010797960,0.005,3331.7,3329.8,0.05993189]
[1721010798164,0.005,3331.7,3329.1,0.059958]
[1721010798372,8.346,3331.6,3329.1,0.05998683]
[1721010798524,3.91017405,3331.5,3328.6,0.05998681]
[1721010798959,3.91017405,3331.5,3328.7,2.70375]
[1721010798960,3.8351,3331.5,3328.7,2.70375]
[1721010799137,0.0750653,3331.4,3328.8,0.05996581]
[1721010799480,0.0750653,3331.4,3328.5,2.4593]
[1721010799481,1.5,3331.2,3328.6,0.05998698]
[1721010799644,3.8351,3331.5,3328.9,0.05998698]
[1721010799980,1.21811,3331.4,3328.9,0.05998698]
[1721010800268,0.005,3331.7,3329.3,2.70324]
[1721010800580,0.005,3331.7,3329.6,2.70302]
[1721010800786,0.005,3331.7,3329.6,0.05993478]
[1721010801339,0.005,3331.7,3329.8,2.70284]
[1721010801652,0.005,3331.7,3329.7,2.3052]
[1721010801653,3.2,3333.9,3330.7,2.7021]
[1721010801959,8.96266024,3333.8,3331.0,2.4124]
[1721010802170,1.57502164,3333.7,3331.1,0.05986102]
[1721010802460,0.54163047,3333.8,3331.7,2.70131]
[1721010802662,0.54163047,3333.8,3331.8,0.0598262]
[1721010802862,0.1274162,3334.2,3332.4,2.70074]
[1721010803067,0.1274162,3334.2,3332.7,2.7005]
[1721010803260,0.1274162,3334.2,3332.8,0.05976831]
[1721010803471,0.07498893,3335.2,3332.7,0.05978253]
[1721010803810,0.07498893,3335.2,3331.9,2.2745]
[1721010803811,0.1459972,3334.4,3331.9,2.2745]
[1721010804100,3.622,3334.0,3331.9,2.2745]
[1721010804263,1.5,3333.7,3331.0,2.4897]
[1721010804465,3.622,3333.4,3330.2,2.4897]
[1721010804791,3.622,3332.8,3330.3,0.05990703]
[1721010805001,3.07505724,3332.7,3330.3,0.05992792]
[1721010805180,3.07505724,3332.7,3330.2,2.4897]
[1721010805181,0.55,3332.6,3330.2,2.4897]
[1721010805382,3.622,3332.2,3329.3,2.4186]
[1721010805717,3.62506796,3332.1,3329.3,2.4186]
[1721010805897,3.07506796,3332.1,3329.4,0.05997196]
[1721010806081,3.07506796,3332.1,3329.4,2.76314196]
[1721010806266,1.50710864,3332.0,3329.6,2.70302]
[1721010806465,1.45710864,3332.0,3329.9,2.70276]
[1721010806765,0.0280184,3332.0,3330.4,2.3478]
[1721010806961,0.0280184,3332.0,3330.8,2.70201]
[1721010807179,1e-08,3332.0,3330.9,0.05987606]
[1721010807372,1e-08,3332.0,3331.0,1.87787602]
[1721010807576,0.1179788,3334.4,3332.1,2.4965]
[1721010807782,0.1179788,3334.4,3332.2,0.05981312]
[1721010807977,0.1179788,3334.4,3332.3,0.05980997]
[1721010808172,0.1179788,3334.4,3332.2,0.120344]
[1721010808173,0.07500036,3334.2,3332.2,0.120344]
[1721010808389,0.07500036,3334.2,3331.2,0.0598522]
[1721010808567,0.07500036,3334.2,3331.3,0.05986905]
[1721010808783,8.6696819,3334.1,3331.3,0.05986905]
[1721010809132,8.6696819,3334.1,3331.1,2.4829]
[1721010809133,3.622,3333.5,3331.1,2.4829]
[1721010809279,3.622,3332.8,3330.1,5.18545]
[1721010809633,3.07504682,3332.7,3330.1,5.24537145]
[1721010809933,3.07504682,3332.7,3330.2,3.22706715]
[1721010809934,0.66970468,3332.6,3330.2,3.22706715]
[1721010810080,0.0750353,3333.2,3330.5,2.70229]
[1721010810279,0.0750353,3333.2,3330.2,3.22706715]
[1721010810280,0.0750353,3333.2,3330.6,0.05989382]
[1721010810714,3.0,3333.3,3330.6,0.05989382]
[1721010810922,3.0,3333.3,3331.0,2.70181]
[1721010811119,3.0,3333.3,3331.1,0.0598693]
[1721010811299,1.1346,3333.2,3331.6,2.70135]
[1721010811496,0.3236819,3334.1,3331.2,5.10802]
[1721010811683,0.3236819,3334.1,3331.4,2.70155]
[1721010811684,0.07501565,3334.0,3331.4,2.70155]
[1721010811879,0.18986976,3333.9,3331.7,2.70124]
[1721010812230,0.07500837,3334.1,3331.7,2.7013]
[1721010812425,2.70033,3333.0,3331.7,2.7013]
[1721010812640,0.07500864,3333.1,3331.1,2.70175]
[1721010812783,1.5,3334.0,3331.2,2.7017]
[1721010812784,0.07502244,3333.6,3331.2,2.7017]
[1721010813083,0.07502244,3333.6,3330.6,2.70215]
[1721010813084,2.70111,3332.0,3330.6,2.70215]
[1721010813288,2.971221,3332.0,3330.5,2.70226]
[1721010813613,2.971221,3332.0,3330.8,2.70204]
[1721010813798,2.971221,3332.0,3330.1,6.32456]
[1721010813799,0.270111,3332.0,3330.9,2.70193]
[1721010814119,2.70049,3332.8,3331.3,2.70162]
[1721010814120,2.70043,3332.8,3331.3,2.70162]
[1721010814337,2.70117,3331.9,3330.8,2.70204]
[1721010814621,2.701,3332.1,3330.6,2.70218]
[1721010814929,2.70079,3332.4,3330.6,2.70218]
[1721010815113,2.70138,3331.7,3330.6,2.70218]
[1721010815280,2.70138,3331.7,3330.5,2.70228]
[1721010815479,0.27758271,3332.3,3330.2,2.2956]
[1721010815716,0.27758271,3332.3,3330.2,4.1136]
[1721010815926,3.0,3333.2,3330.3,2.22936]
[1721010816095,3.0,3333.2,3331.2,2.70165]
[1721010816096,2.70092,3332.2,3331.2,2.70165]
[1721010816304,0.07502472,3332.4,3330.3,0.41136]
[1721010816500,3.0,3333.2,3330.2,2.2956]
[1721010816501,2.70036,3332.9,3330.2,2.2956]
[1721010816698,3.69704235,3332.8,3330.2,2.2956]
[1721010817019,2.70083,3332.3,3330.6,2.70218]
[1721010817185,3.622,3333.4,3329.6,3.622]
[1721010817186,2.525917,3336.2,3333.7,2.69969]
[1721010817387,2.525917,3336.2,3332.2,3.622]
[1721010817388,2.69844,3335.3,3333.5,2.69984]
[1721010817612,2.69801,3335.8,3333.1,7.41796836]
[1721010817797,2.69873,3334.9,3333.4,2.69986]
[1721010818001,2.69852,3335.2,3333.4,2.69986]
[1721010818200,2.69865,3335.0,3333.4,2.69986]
[1721010818389,2.69858,3335.1,3333.4,2.69986]
[1721010818724,2.69867,3335.0,3333.5,2.69983]
[1721010819222,2.69906,3334.5,3332.7,2.485]
[1721010819533,2.69935,3334.2,3332.7,2.485]
[1721010820023,2.69935,3334.2,3332.7,5.1855]
[1721010820232,0.07498722,3335.4,3332.7,2.485]
[1721010820233,0.28173288,3334.1,3332.7,2.485]
[1721010820404,5.39855,3334.3,3332.7,2.485]
[1721010820603,5.69934,3334.2,3332.8,2.70042]
[1721010820800,2.69955,3333.9,3332.7,2.485]
[1721010821325,3.55107788,3334.1,3332.8,2.70035]
[1721010821505,3.0,3334.0,3332.8,2.70035]
[1721010821689,2.69955,3333.9,3332.7,2.485]
[1721010821886,3.0,3334.0,3332.7,2.485]
[1721010822215,0.65510779,3333.9,3332.7,2.485]
[1721010822416,3.35470779,3333.9,3332.7,2.485]
[1721010822614,0.65510779,3333.9,3332.9,2.88]
[1721010823031,2.8171888,3334.4,3332.9,2.88]
[1721010823336,2.69945,3334.1,3332.9,2.88]
[1721010823489,2.6995,3334.0,3332.9,2.88]
[1721010823693,0.1179788,3334.4,3332.9,5.58031]
[1721010823694,2.69929,3334.3,3332.9,5.58031]
[1721010823906,3.0,3334.2,3332.9,5.58031]